{"text_format":"1","workbook":"xlsx","n_sheets":5,"sheets":["Cover","Report","Footnotes","Stacked&Idle","Disclaimers&Definitions "],"not_rendered":{"charts":0,"images":8,"macros":0,"external_links":0,"defined_names":18,"comments":0,"pivot_tables":0},"unopened":[],"bounds":{"document_bytes":16777216,"sheet_cells":100000,"rows_first":2000,"rows_last":500,"rows_between":2000,"halvings":0,"cell_chars":16384,"cell_head_chars":4096},"cells_cut":0,"cells_raw":0,"read":"whole","date_system":"1900"}

{"sheet":"Cover","index":0,"n_rows":11,"n_cols":1,"rows_kept":11,"cut":false,"hidden":false,"merged":[]}
[]
[]
[]
[]
[]
[]
[]
[]
[]
[]
[" "]

{"sheet":"Report","index":1,"n_rows":54,"n_cols":18,"rows_kept":54,"cut":false,"hidden":false,"merged":[[5,14,5,17],[7,14,7,17],[2,0,2,12],[3,0,3,12]]}
[]
["Updated: February 18, 2014"]
["Revisions Noted in Bold"]
["Dynamically positioned «"]
[]
[null,null,null,null,null,null,null,null,null,null,null,"Dayrate on","Dayrate on",null,"Estimated Out of Service Days (4)"]
[null,null,null,null,"Yr. (1)","Water","Drilling ",null,null,"Estimated","Estimated","Current","Previous"]
[null,"Footnote ","Floater","Dynamically","Entered","Depth","Depth",null,null," Contract","Expiration","Contract (3)"," Contract (3)",null,2014]
["Rig Type/Name","References","Type","Positioned","Service","(Feet)","(Feet)","Location","Customer","Start Date (2)"," Date (2)","(Dollars)","(Dollars)",null,"Q1","Q2","Q3","Q4"]
[]
["High Specification Floater: Ultra-Deepwater"]
[]
["Discoverer Clear Leader"," (6), (12)","ship","«",2009,12000,40000,"USGOM","Chevron","2009-09-01","2014-09-01",571000,503000,null,0,21,0,0]
[null," (6), (8)",null,null,null,null,null,"USGOM","Chevron","2014-09-01","2018-08-01",590000,{"$f":"+L13","v":571000}]
["Discoverer Spirit",-6,"ship","«",2000,10000,35000,"USGOM","Anadarko","2012-07-01","2014-08-01",557000,546000,null,0,0,33,51]
["Deepwater Millennium","(7)","ship","«",1999,10000,30000,"Australia","Woodside","2014-02-01","2015-02-15",597000,570000,null,72,0,0,0]
[null,"(7)",null,null,null,null,null,"Australia","Woodside",{"$f":"+K16","v":"2015-02-15"},"2016-02-21",608000,{"$f":"+L16","v":597000}]
["GSF Development Driller II",-6,"semi","«",2005,7500,37500,"USGOM","BP","2008-11-01","2014-03-28",603000,208000,null,0,20,0,0]
[null,null,null,null,null,null,null,null,null,null,null,null,null,null,0,0,0,0]
["High Specification Floater: Deepwater"]
[null,null,null,null,null,null,null,null,null,null,null,null,null,null,0,0,0,0]
["Discoverer Seven Seas",null,"ship","«","1976/1997",7000,25000,"Indonesia","Inpex","2013-06-01","2014-06-30",500000,490000,null,0,0,10,0]
[null,null,null,null,null,null,null,"TBA","TBA","2014-07-25","2014-09-30",400000,500000]
["M.G. Hulme, Jr.",-7,"semi",null,"1983/1996",5000,25000,"India","ONGC","2011-09-01","2014-02-01",186000,"N/A",null,21,24,0,0]
[]
["Midwater Floaters"]
[null,null,null,null,null,null,null,null,null,null,null,null,null,null,0,0,0,0]
["Transocean Driller"," (7), (8)","semi",null,1991,3000,25000,"Brazil","Petrobras","2010-07-01","2016-07-01",263000,116000,null,0,0,0,0]
["Sedco 714",-7,"semi",null,"1983/1997",1600,25000,"UKNS","Total","2012-12-01","2014-04-01",399000,398000,null,0,83,37,0]
[null,-7,null,null,null,null,null,"UKNS","Total","2014-07-01","2015-07-01",437000,{"$f":"+L29","v":399000}]
[null,-7,null,null,null,null,null,"UKNS","Total",{"$f":"+K30","v":"2015-07-01"},"2015-12-01",444000,{"$f":"+L30","v":437000}]
["Sedneth 701",-7,"semi",null,"1972/1993",1500,25000,"Nigeria","NPDC","2012-09-01","2014-09-25",311000,275000,null,0,35,0,0]
[null,null,null,null,null,null,null,null,null,null,null,null,null,null,0,0,0,0]
["High Specification Jackups - See Footnote 13"]
[null,null,null,null,null,null,null,null,null,null,null,null,null,null,0,0,0,0]
["GSF Galaxy I",-7,null,null,"1991/2001",400,30000,"UKNS","Total","2014-04-01","2014-06-01",215000,133000,null,90,22,0,0]
[null,-7,null,null,null,null,null,"UKNS","Total",{"$f":"+K36","v":"2014-06-01"},"2014-08-01",218000,{"$f":"+L36","v":215000}]
[null,-7,null,null,null,null,null,"UKNS","Total","2014-08-01","2015-02-01",221000,218000]
[null,-7,null,null,null,null,null,"UKNS","Total","2015-02-01","2015-08-01",225000,{"$f":"L38","v":221000}]
[null,-7,null,null,null,null,null,"UKNS","Total","2015-08-01","2016-02-01",228000,225000]
[null,-7,null,null,null,null,null,"UKNS","Total","2016-02-01","2016-08-01",232000,228000]
[null,-7,null,null,null,null,null,"UKNS","Total","2016-08-01","2017-02-01",235000,232000]
["GSF Galaxy II",-7,null,null,1998,400,30000,"UKNS","GDF Suez","2014-03-01","2014-05-01",191000,190000,null,14,0,0,0]
[null,-7,null,null,null,null,null,"UKNS","GDF Suez",{"$f":"+K43","v":"2014-05-01"},"2014-08-01",210000,{"$f":"+L43","v":191000}]
[null,-7,null,null,null,null,null,"UKNS","GDF Suez",{"$f":"+K44","v":"2014-08-01"},"2015-03-31",220000,{"$f":"+L44","v":210000}]
["GSF Galaxy III"," (6), (7)",null,null,1999,400,30000,"UKNS","Nexen","2013-07-01","2014-05-01",226000,146000,null,0,0,50,39]
[]
[]
["Fixed-Price Options - See Footnote 10"]
[]
["High Specification Floater: Deepwater"]
[]
["Discoverer Seven Seas",null,"ship","«","1976/1997",7000,25000,"TBA","TBA","2014-09-30","2014-10-30",400000,400000]
[null,null,null,null,null,null,null,"TBA","TBA",{"$f":"+K53","v":"2014-10-30"},"2014-12-30",400000,{"$f":"+L53","v":400000}]

{"sheet":"Footnotes","index":2,"n_rows":19,"n_cols":3,"rows_kept":19,"cut":false,"hidden":false,"merged":[[18,2,18,12],[13,2,13,13],[14,2,14,13],[16,2,16,13],[15,2,15,13],[17,2,17,13],[10,2,10,13],[11,2,11,13],[12,2,12,13],[4,1,4,2],[8,2,8,13],[6,2,6,13],[7,2,7,13],[9,2,9,13]]}
[]
[null,{"$f":"Report!A2","v":"Updated: February 18, 2014"}]
[null,{"$f":"Report!A3","v":"Revisions Noted in Bold"}]
[]
[null,"Footnotes"]
["Prev"]
["(1)","(1)","Dates shown are the original service date and the date of the most recent upgrade, if any."]
["(2)","(2)","Estimated Contract Start and Estimated Expiration Dates are calculated as follows: (1) for events estimated to occur between the 1st and 15th of a month, the previous month is reported (i.e. a contract which is estimated to commence on May 4, 2013 will be reported as commencing in April 2013) and (2) for events estimated to occur between the 16th and the end of a month, the actual month is reported (i.e. a contract which is estimated to commence on May 24, 2013 will be reported as commencing in May 2013).  Expiration dates represent the company's current estimate of the earliest date the contract for each rig is likely to expire. Some rigs have two or more contracts in continuation, so the last line shows the estimated earliest availability. Many contracts permit the customer to extend the contract.  "]
["(3)","(3)","Represents the full operating dayrate, although the average dayrate over the term of the contract will be lower and could be substantially lower. Does not reflect incentive programs which are typically based on the rig's operating performance against a performance curve. Please refer to the “Customer Contract Duration and Dayrates and Risks Associated with Operations” section of the Disclaimers & Definitions for a description of dayrates.  This column may not reflect the rate currently being received under the contract as a result of an applicable standby rate or other rate, which typically is less than the contract dayrate."]
["(4)","(4)","The out of service time represents those days where a rig is scheduled to be out of service and not be available to earn an operating dayrate. Please refer to the “Out of Service Days (Shipyards, Mobilizations, Demobilizations, Contract Preparation)” section of the Disclaimers & Definitions for a full description.  "]
["(5)","(5)","Estimated Average Contract Dayrate is defined as the average contracted full operating dayrate to be earned per revenue earning day. See note (3) for definition of full operating dayrate."]
["(6)","(6)","Reflects the current contracted dayrate which could reflect prior cost escalations and could change in the future due to further cost escalations."]
["(7)","(7)","Reflects the current contracted dayrate which is comprised of a foreign currency component and which could change due to foreign exchange adjustments."]
["(8)","(8)","Current contract provides for a bonus incentive opportunity not reflected in the stated current contract dayrate."]
["(9)","(9)","For the period of time that this rig is contracted to Applied Drilling Technology International, the drilling management services division of the company's U.K. operating subsidiary, accounting rules require that we eliminate the revenues and costs related to those contracts from the contract drilling segment of the consolidated statement of operations.  Revenues from turnkey contracts will be recognized in other revenues and are contingent upon successful completion of the well program."]
["(10)","(10)","Fixed price options may be exercised at the customer’s discretion. During periods when dayrates on new contracts are increasing relative to existing contracts, the likelihood of customers’ exercising fixed price options increases. During periods when dayrates on new contracts are decreasing relative to existing contracts, the likelihood of customers’ exercising fixed price options declines."]
["(11)","(11)","The contract is expected to start in the quarter indicated.  Factors that could influence the contract start date include shipyard delivery, customer acceptance, and mobilization to operating location, among others."]
["(13)","(12)","Until August 2012, the contract dayrate was $469,000, subject to cost escalation. The dayrate for the remainder of the contract is linked to the standard West Texas Intermediate crude oil price with a floor of $40 per barrel resulting in a contract dayrate of $400,000 and a ceiling of $70 per barrel resulting in a contract dayrate of $500,000, subject to cost escalation."]
[null,"(13)"," The company sold the high-specification jackup, GSF Monitor, which was previously held for sale. The details of the transaction have not been disclosed."]

{"sheet":"Stacked&Idle","index":3,"n_rows":169,"n_cols":10,"rows_kept":169,"cut":false,"hidden":true,"merged":[[2,0,2,11],[24,0,24,15]]}
[]
[{"$f":"Report!A2","v":"Updated: February 18, 2014"}]
[{"$f":"Report!A3","v":"Revisions Noted in Bold"}]
[]
["Stacked Rigs"]
["Rig Type/Name","Start Date"]
["Deepwater (3)"]
[]
["Sovereign Explorer","2010-11-01"]
["Transocean Rather","2013-09-18"]
["Sedco 710","2013-09-05"]
["Midwater Floaters (5)"]
[]
["Sedco 700","Prior to 2010"]
["GSF Aleutian Key","2010-01-09"]
["Sedco 601","2011-04-09"]
["J.W. McLean","2011-04-13"]
["GSF Arctic I","2013-07-01"]
["Idle (3)"]
["Sedco Energy","2013-12-15"]
["Transocean Amirante","2013-08-15"]
["Transocean Marianas","2013-12-31"]
[]
["Stacked and Idle rigs detailed above are not currently operating on contract.  Start date denotes when rig commences idle or stacked status."]
["An \"Idle\" rig is between contracts, readily available for  operations, and operating costs are typically at or near normal levels.  A \"Stacked\" rig, on the other hand, is manned by a reduced crew or unmanned and typically has reduced operating costs and is (i) preparing for an extended period of inactivity, (ii) expected to continue to be inactive for an extended period, or (iii) completing a period of extended inactivity.  However, stacked rigs will continue to incur operating costs at or above normal operating costs for 30 to 60 days following initiation of stacking."]
[]
[]
[]
[]
[]
[]
[]
[]
[]
[]
[]
[]
[]
[]
[]
[]
[]
[]
[]
[]
[]
[]
[]
[]
[]
[]
[]
[]
[]
[]
[]
[]
[]
[]
[]
[]
[]
[]
[]
[]
[]
[]
[]
[]
[]
[]
[]
[]
[]
[]
[]
[]
[]
[]
[]
[]
[]
[]
[]
[]
[]
[]
[]
[]
[]
[]
[]
[]
[]
[]
[]
[]
[]
[]
[]
[]
[]
[]
[]
[]
[]
[]
[]
[]
[]
[]
[]
[]
[]
[]
[]
[]
[]
[]
[]
[]
[]
[]
[]
[]
[]
[]
[]
[]
[]
[]
[]
[]
[]
[]
[]
[]
[]
[]
[]
[]
[]
[]
[]
[]
[]
[]
[]
[]
[]
[]
[]
[]
[]
[]
[]
[]
[]
[]
[]
[]
[]
[]
[]
[]
[]
[]
[null,null,null,null,null,null,null,null,null,"2013-06-01"]
[null,null,null,null,null,null,null,null,{"$f":"+J168","v":"2013-06-01"},"2013-09-01"]

{"sheet":"Disclaimers&Definitions ","index":4,"n_rows":3,"n_cols":1,"rows_kept":3,"cut":false,"hidden":false,"merged":[[2,0,2,11]]}
[" "]
[]
["DISCLAIMERS & DEFINITIONS"]